fUST/lending_fUST_20250817
["ID","MTS","AMOUNT","RATE_DAILY","PERIOD"]
[379932821,1755442274202,-493.313819,0.0002108,2]
[379932823,1755442274212,-273.692923,0.0002108,2]
[379932825,1755442274221,-273.692923,0.0002108,2]
[379932827,1755442274231,-3000.0,0.0002108,2]
[379932829,1755442274241,-151.0,0.0002108,2]
[379932831,1755442274251,-151.0,0.0002108,2]
[379932833,1755442274261,-151.0,0.0002108,2]
[379932835,1755442274270,-151.0,0.0002108,2]
[379932837,1755442274280,-151.0,0.0002108,2]
[379932839,1755442274289,-466.476595,0.0002108,2]
[379932841,1755442274299,-466.476595,0.0002108,2]
[379932843,1755442274309,-151.0,0.0002108,2]
[379932845,1755442274318,-151.0,0.0002108,2]
[379932847,1755442274329,-3000.0,0.0002109,2]
[379932849,1755442274339,-389.09212,0.0002109,2]
[379932851,1755442274349,-389.09212,0.0002109,2]
[379932853,1755442274362,-151.0,0.00021095,2]
[379932855,1755442274371,-500.0,0.00021096,2]
[379932857,1755442274381,-257.06047334,0.00021096,2]
[379932859,1755442274391,-872.0,0.00021096,2]
[379932861,1755442274401,-261.49588744,0.00021096,2]
[379932863,1755442274410,-261.71480021,0.00021096,2]
[379932865,1755442274420,-151.0,0.00021096,2]
[379932867,1755442274430,-500.0,0.00021096,2]
[379932869,1755442274441,-221.74219092,0.00021096,2]
[379932871,1755442274450,-151.0,0.00021096,2]
[379932873,1755442274460,-151.0,0.00021096,2]
[379932875,1755442274469,-151.0,0.00021096,2]
[379932877,1755442274480,-500.0,0.00021096,2]
[379932879,1755442274490,-500.0,0.00021096,2]
[379932881,1755442274499,-3000.0,0.000211,2]
[379932883,1755442274508,-502.775489,0.000211,2]
[379932885,1755442274518,-502.775489,0.000211,2]
[379932887,1755442274528,-527.36,0.00021109,2]
[379932889,1755442274537,-912.72,0.00021109,2]
[379932890,1755442274547,-480.0,0.00021109,2]
[379932892,1755442274556,-563.11,0.00021109,2]
[379932894,1755442274565,-480.0,0.00021109,2]
[379932896,1755442274575,-591.29,0.00021109,2]
[379932898,1755442274584,-480.0,0.00021109,2]
[379932900,1755442274593,-1163.69,0.00021109,2]
[379932902,1755442274602,-480.0,0.00021109,2]
[379932904,1755442274614,-480.0,0.00021109,2]
[379932906,1755442274624,-928.64,0.00021109,2]
[379932908,1755442274633,-908.19,0.00021109,2]
[379932910,1755442274644,-480.0,0.00021109,2]
[379932912,1755442274655,-480.0,0.00021109,2]
[379932914,1755442274665,-709.65,0.00021109,2]
[379932916,1755442274675,-1949.06,0.00021109,2]
[379932918,1755442274685,-480.0,0.00021109,2]
[379932920,1755442274694,-659.52,0.00021109,2]
[379932922,1755442274705,-2225.78,0.00021109,2]
[379932924,1755442274715,-1000.32,0.00021109,2]
[379932926,1755442274725,-480.0,0.00021109,2]
[379932928,1755442274736,-1436.82,0.00021109,2]
[379932931,1755442274750,-6061.46,0.00021109,2]
[379932933,1755442274760,-1175.2,0.00021109,2]
[379932935,1755442274770,-763.93,0.00021109,2]
[379932937,1755442274779,-526.35,0.00021109,2]
[379932939,1755442274790,-480.0,0.00021109,2]
[379932941,1755442274800,-349.64,0.00021109,2]
[379932943,1755442274810,-695.09,0.00021109,2]
[379932945,1755442274820,-715.83,0.00021109,2]
[379932947,1755442274830,-494.32,0.00021109,2]
[379932949,1755442274841,-480.0,0.00021109,2]
[379932951,1755442274852,-460.74097291,0.00021109,2]
[379932960,1755442274942,-504.66,0.00021109,2]
[379932962,1755442274952,-3000.0,0.0002111,2]
[379932964,1755442274961,-168.0,0.00021117,2]
[379932966,1755442274971,-3000.0,0.0002112,2]
[379932968,1755442274980,-658.0,0.00021126,2]
[379932970,1755442274989,-3000.0,0.0002113,2]
[379932972,1755442274999,-781.344543,0.0002113,2]
[379932974,1755442275008,-781.344543,0.0002113,2]
[379932976,1755442275018,-151.0,0.0002113,2]
[379932978,1755442275027,-259.054699,0.0002113,2]
[379932980,1755442275037,-151.0,0.0002113,2]
[379932982,1755442275046,-273.452734,0.0002113,2]
[379932984,1755442275056,-273.452734,0.0002113,2]
[379932985,1755442275066,-3000.0,0.0002114,2]
[379932987,1755442275075,-168.504209,0.00021142,7]
[379932989,1755442275084,-2500.0,0.00021143,2]
[379932990,1755442275094,-3000.0,0.0002115,2]
[379932992,1755442275103,-151.0,0.0002115,2]
[379932994,1755442275113,-151.0,0.0002115,2]
[379932996,1755442275122,-227.68549792,0.00021151,2]
[379932997,1755442275131,-3000.0,0.0002116,2]
[379932999,1755442275141,-168.504209,0.0002116,5]
[379933001,1755442275151,-151.0,0.0002116,2]
[379933002,1755442275161,-301.35,0.00021162,2]
[379933004,1755442275171,-300.010742,0.00021163,2]
[379933006,1755442275181,-151.0,0.00021163,2]
[379933007,1755442275190,-151.0,0.00021163,2]
[379933009,1755442275199,-3000.0,0.0002117,2]
[379933011,1755442275209,-278.560994,0.00021172,2]
[379933013,1755442275218,-278.560994,0.00021172,2]
[379933014,1755442275227,-159.71095547,0.00021178,2]
[379933016,1755442275237,-3000.0,0.0002118,2]
[379933018,1755442275246,-3000.0,0.0002119,2]
[379933019,1755442275256,-228.443223,0.0002119,2]
[379933021,1755442275265,-228.443223,0.0002119,2]
[379933023,1755442275275,-638.72,0.00021191,2]
[379933024,1755442275284,-500.0,0.00021192,2]
[379933026,1755442275294,-2200.0,0.00021192,2]
[379933028,1755442275303,-3000.0,0.000212,2]
[379933029,1755442275312,-480.0,0.00021204,2]
[379933031,1755442275323,-1819.3,0.00021204,2]
[379933033,1755442275332,-3256.49,0.00021205,2]
[379933035,1755442275342,-480.0,0.00021206,2]
[379933036,1755442275351,-698.95,0.00021206,2]
[379933038,1755442275360,-480.0,0.00021206,2]
[379933040,1755442275370,-687.45,0.00021206,2]
[379933041,1755442275379,-480.0,0.00021206,2]
[379933043,1755442275389,-549.85,0.00021206,2]
[379933045,1755442275399,-480.0,0.00021206,2]
[379933046,1755442275408,-971.72,0.00021206,2]
[379933048,1755442275417,-480.0,0.00021206,2]
[379933049,1755442275426,-573.88,0.00021206,2]
[379933051,1755442275436,-480.0,0.00021206,2]
[379933053,1755442275446,-719.18,0.00021206,2]
[379933054,1755442275456,-480.0,0.00021206,2]
[379933056,1755442275466,-584.35,0.00021206,2]
[379933058,1755442275476,-480.0,0.00021206,2]
[379933060,1755442275486,-492.35,0.00021206,2]
[379933061,1755442275495,-282.73,0.00021207,2]
[379933063,1755442275505,-480.0,0.00021207,2]
[379933065,1755442275514,-894.92,0.00021207,2]
[379933066,1755442275523,-480.0,0.00021207,2]
[379933068,1755442275532,-7675.82,0.00021207,2]
[379933070,1755442275542,-990.44,0.00021207,2]
[379933072,1755442275552,-5032.79,0.00021207,2]
[379933074,1755442275562,-480.0,0.00021208,2]
[379933075,1755442275572,-788.99,0.00021208,2]
[379933077,1755442275584,-613.42,0.00021208,2]
[379933078,1755442275593,-581.88,0.00021208,2]
[379933080,1755442275602,-1673.56,0.00021208,2]
[379933082,1755442275614,-2358.67,0.00021208,2]
[379933084,1755442275624,-1000.0,0.00021209,2]
[379933085,1755442275633,-273.018428,0.00021209,2]
[379933087,1755442275642,-151.0,0.00021209,2]
[379933089,1755442275653,-983.609175,0.00021209,2]
[379933091,1755442275663,-983.609175,0.00021209,2]
[379933092,1755442275672,-323.570503,0.00021209,2]
[379933094,1755442275681,-323.570499,0.00021209,2]
[379933096,1755442275692,-182.827039,0.00021209,2]
[379933097,1755442275702,-3000.0,0.0002121,2]
[379933099,1755442275712,-151.0,0.0002121,2]
[379933101,1755442275721,-151.0,0.0002121,2]
[379933102,1755442275731,-151.0,0.0002121,2]
[379933104,1755442275740,-160.226413,0.0002121,2]
[379933105,1755442275749,-151.0,0.0002121,2]
[379933107,1755442275760,-687.648653,0.0002121,2]
[379933108,1755442275771,-687.648653,0.0002121,2]
[379933109,1755442275780,-951.6485,0.00021211,2]
[379933110,1755442275790,-951.6485,0.00021211,2]
[379933111,1755442275799,-151.0,0.00021211,2]
[379933112,1755442275808,-151.0,0.00021211,2]
[379933113,1755442275818,-151.0,0.00021211,2]
[379933114,1755442275827,-151.0,0.00021211,2]
[379933115,1755442275836,-167.8,0.00021211,2]
[379933116,1755442275846,-167.8,0.00021211,2]
[379933117,1755442275855,-397.7164,0.00021211,2]
[379933118,1755442275865,-168.504209,0.00021213,2]
[379933119,1755442275875,-420.5,0.00021219,3]
[379933120,1755442275884,-3000.0,0.0002122,2]
[379933121,1755442275893,-168.504209,0.0002122,5]
[379933122,1755442275904,-3000.0,0.0002123,2]
[379933123,1755442275913,-2500.0,0.00021231,2]
[379933124,1755442275923,-2500.0,0.00021231,2]
[379933125,1755442275932,-227.68549792,0.00021233,2]
[379933126,1755442275942,-3000.0,0.0002124,2]
[379933127,1755442275951,-151.0,0.0002124,2]
[379933128,1755442275961,-151.0,0.0002124,2]
[379933129,1755442275971,-204.815284,0.0002124,2]
[379933130,1755442275980,-204.815292,0.0002124,2]
[379933131,1755442275990,-411.93818841,0.00021243,2]
[379933132,1755442275999,-309.5546377,0.00021243,2]
[379933133,1755442276008,-460.0,0.00021244,2]
[379933134,1755442276017,-3000.0,0.0002125,2]
[379933135,1755442276026,-3000.0,0.0002126,2]
[379933136,1755442276036,-3000.0,0.0002127,2]
[379933137,1755442276045,-151.0,0.0002127,2]
[379933138,1755442276056,-3000.0,0.0002128,2]
[379933139,1755442276067,-168.504209,0.0002128,5]
[379933140,1755442276083,-3000.0,0.0002129,2]
[379933141,1755442276094,-202.674462,0.00021291,2]
[379933142,1755442276103,-151.0,0.00021291,2]
[379933143,1755442276113,-466.476595,0.00021291,2]
[379933144,1755442276122,-466.476595,0.00021291,2]
[379933145,1755442276132,-151.0,0.00021291,2]
[379933146,1755442276146,-151.0,0.00021291,2]
[379933147,1755442276157,-168.504209,0.00021294,7]
[379933148,1755442276167,-206.0,0.000213,2]
[379933149,1755442276178,-3000.0,0.000213,2]
[379933150,1755442276188,-389.09212,0.00021309,2]
[379933151,1755442276198,-389.09212,0.00021309,2]
[379933152,1755442276207,-3000.0,0.0002131,2]
[379933153,1755442276217,-3000.0,0.0002132,2]
[379933154,1755442276226,-278.560994,0.0002132,2]
[379933155,1755442276236,-278.560994,0.0002132,2]
[379933156,1755442276246,-781.344543,0.00021324,2]
[379933157,1755442276255,-781.344543,0.00021324,2]
[379933158,1755442276265,-151.0,0.00021324,2]
[379933159,1755442276274,-151.0,0.00021324,2]
[379933160,1755442276284,-273.452734,0.00021324,2]
[379933161,1755442276293,-273.452734,0.00021324,2]
[379933162,1755442276302,-3000.0,0.0002133,2]
[379933163,1755442276312,-151.0,0.0002133,2]
[379933164,1755442276321,-502.775489,0.0002133,2]
[379933165,1755442276330,-151.0,0.0002133,2]
[379933166,1755442276340,-502.775489,0.0002133,2]
[379933167,1755442276349,-151.0,0.0002133,2]
[379933168,1755442276359,-151.0,0.0002133,2]
[379933169,1755442276368,-151.0,0.00021331,2]
[379933170,1755442276378,-151.0,0.00021339,2]
[379933171,1755442276387,-151.0,0.00021339,2]
[379933172,1755442276397,-37680.46015286,0.0002134,2]
[379933173,1755442276407,-151.0,0.0002134,2]
[379933174,1755442276416,-151.0,0.0002134,2]
[379933175,1755442276425,-410.539385,0.0002134,2]
[379933176,1755442276435,-151.0,0.0002134,2]
[379933177,1755442276444,-151.0,0.0002134,2]
[379933178,1755442276453,-151.0,0.0002134,2]
[379933179,1755442276463,-493.313819,0.0002134,2]
[379933180,1755442276472,-493.313819,0.0002134,2]
[379933181,1755442276482,-151.0,0.0002134,2]
[379933182,1755442276491,-151.0,0.0002134,2]
[379933183,1755442276501,-151.0,0.0002134,2]
[379933184,1755442276510,-234.066308,0.0002134,2]
[379933185,1755442276520,-273.692923,0.0002134,2]
[379933186,1755442276529,-273.692923,0.0002134,2]
[379933187,1755442276539,-3000.0,0.0002134,2]
[379933188,1755442276548,-151.0,0.0002134,2]
[379933189,1755442276557,-228.443223,0.0002134,2]
[379933190,1755442276567,-228.443223,0.0002134,2]
[379933191,1755442276576,-151.0,0.0002134,2]
[379933192,1755442276585,-242.115373,0.0002134,2]
[379933193,1755442276594,-151.0,0.0002134,2]
[379933194,1755442276604,-220.071214,0.0002134,2]
[379933195,1755442276617,-151.0,0.0002134,2]
[379933196,1755442276627,-216.781623,0.0002134,2]
[379933197,1755442276636,-168.504209,0.0002134,5]
[379933198,1755442276645,-151.0,0.0002134,2]
[379933199,1755442276657,-227.68549792,0.00021342,2]
[379933200,1755442276667,-3000.0,0.0002135,2]
[379933201,1755442276676,-5735.970164,0.0002136,2]
[379933202,1755442276687,-151.0,0.00021369,2]
[379933203,1755442276696,-983.609175,0.00021369,2]
[379933204,1755442276705,-983.609175,0.00021369,2]
[379933205,1755442276715,-557.0,0.0002137,2]
[379933206,1755442276724,-872.0,0.0002137,2]
[379933207,1755442276734,-151.0,0.0002137,2]
[379933208,1755442276743,-151.0,0.0002137,2]
[379933209,1755442276752,-153.26290523,0.0002137,2]
[379933210,1755442276762,-151.0,0.0002137,2]
[379933211,1755442276772,-458.0,0.0002137,2]
[379933212,1755442276783,-275.40330412,0.0002137,2]
[379933213,1755442276792,-527.36,0.00021383,2]
[379933214,1755442276801,-912.72,0.00021383,2]
[379933215,1755442276811,-480.0,0.00021383,2]
[379933216,1755442276820,-563.11,0.00021383,2]
[379933217,1755442276829,-480.0,0.00021383,2]
[379933218,1755442276839,-591.29,0.00021383,2]
[379933219,1755442276848,-480.0,0.00021383,2]
[379933220,1755442276858,-1163.69,0.00021383,2]
[379933221,1755442276867,-480.0,0.00021383,2]
[379933222,1755442276876,-480.0,0.00021383,2]
[379933223,1755442276885,-928.64,0.00021383,2]
[379933224,1755442276894,-908.19,0.00021383,2]
[379933225,1755442276904,-480.0,0.00021383,2]
[379933226,1755442276913,-480.0,0.00021383,2]
[379933227,1755442276923,-709.65,0.00021383,2]
[379933228,1755442276932,-1949.06,0.00021383,2]
[379933229,1755442276942,-480.0,0.00021383,2]
[379933230,1755442276951,-659.52,0.00021383,2]
[379933231,1755442276961,-2225.78,0.00021383,2]
[379933232,1755442276971,-1000.32,0.00021383,2]
[379933233,1755442276980,-480.0,0.00021383,2]
[379933234,1755442276990,-1436.82,0.00021383,2]
[379933235,1755442276999,-6061.46,0.00021383,2]
[379933236,1755442277009,-1175.2,0.00021383,2]
[379933237,1755442277018,-763.93,0.00021383,2]
[379933238,1755442277027,-526.35,0.00021383,2]
[379933239,1755442277037,-480.0,0.00021383,2]
[379933240,1755442277047,-695.09,0.00021383,2]
[379933241,1755442277056,-715.83,0.00021383,2]
[379933242,1755442277066,-494.32,0.00021383,2]
[379933243,1755442277075,-480.0,0.00021383,2]
[379933244,1755442277085,-504.66,0.00021383,2]
[379933245,1755442277094,-420.5,0.00021386,3]
[379933246,1755442277103,-157.081155,0.000214,5]
[379933247,1755442277113,-150.0,0.000214,5]
[379933248,1755442277122,-168.504209,0.000214,5]
[379933249,1755442277132,-8827.72446853,0.0002141,2]
[379933250,1755442277141,-151.0,0.0002141,2]
[379933251,1755442277151,-151.0,0.0002141,2]
[379933252,1755442277160,-151.0,0.0002141,2]
[379933253,1755442277170,-160.226413,0.0002141,2]
[379933254,1755442277179,-951.6485,0.0002141,2]
[379933255,1755442277188,-951.6485,0.0002141,2]
[379933256,1755442277198,-151.0,0.0002141,2]
[379933257,1755442277207,-687.648653,0.0002141,2]
[379933258,1755442277217,-687.648653,0.0002141,2]
[379933260,1755442277227,-278.560994,0.00021428,2]
[379933261,1755442277237,-278.561,0.00021428,2]
[379933263,1755442277248,-151.0,0.00021428,2]
[379933265,1755442277257,-151.0,0.00021428,2]
[379933266,1755442277266,-151.0,0.00021428,2]
[379933267,1755442277275,-151.0,0.00021428,2]
[379933268,1755442277285,-167.8,0.00021428,2]
[379933269,1755442277294,-167.8,0.00021428,2]
[379933270,1755442277304,-397.7164,0.00021428,2]
[379933271,1755442277313,-4000.0,0.00021429,4]
[379933272,1755442277323,-168.0,0.00021445,2]
[379933273,1755442277333,-168.504209,0.00021447,7]
[379933274,1755442277451,-227.68549792,0.00021452,2]
[379933275,1755442277460,-168.0,0.00021471,2]
[379933276,1755442277470,-480.0,0.00021478,2]
[379933277,1755442277479,-1819.3,0.00021478,2]
[379933278,1755442277488,-3256.49,0.00021479,2]
[379933279,1755442277498,-480.0,0.0002148,2]
[379933280,1755442277507,-698.95,0.0002148,2]
[379933281,1755442277516,-480.0,0.0002148,2]
[379933282,1755442277526,-687.45,0.0002148,2]
[379933283,1755442277535,-480.0,0.0002148,2]
[379933284,1755442277544,-549.85,0.0002148,2]
[379933285,1755442277554,-480.0,0.0002148,2]
[379933286,1755442277564,-971.72,0.0002148,2]
[379933287,1755442277575,-480.0,0.0002148,2]
[379933288,1755442277584,-573.88,0.0002148,2]
[379933289,1755442277593,-480.0,0.0002148,2]
[379933290,1755442277603,-719.18,0.0002148,2]
[379933291,1755442277615,-480.0,0.0002148,2]
[379933292,1755442277624,-584.35,0.0002148,2]
[379933293,1755442277634,-176.25933962,0.0002148,2]
[379933294,1755442277643,-492.35,0.0002148,2]
[379933295,1755442277654,-331.0064218,0.00021481,2]
[379933296,1755442277663,-894.92,0.00021481,2]
[379933297,1755442277672,-319.76,0.00021481,2]
[379933298,1755442277682,-7675.82,0.00021481,2]
[379933299,1755442277692,-990.44,0.00021481,2]
[379933300,1755442277702,-5032.79,0.00021481,2]
[379933301,1755442277712,-389.09212,0.00021482,2]
[379933302,1755442277721,-389.09212,0.00021482,2]
[379933303,1755442277730,-480.0,0.00021482,2]
[379933304,1755442277740,-788.99,0.00021482,2]
[379933305,1755442277750,-613.42,0.00021482,2]
[379933306,1755442277759,-581.88,0.00021482,2]
[379933307,1755442277769,-1673.56,0.00021482,2]
[379933308,1755442277778,-2358.67,0.00021482,2]
[379933309,1755442277788,-781.344543,0.00021484,2]
[379933310,1755442277798,-781.344543,0.00021484,2]
[379933311,1755442277808,-151.0,0.00021484,2]
[379933312,1755442277818,-151.0,0.00021484,2]
[379933313,1755442277828,-273.452734,0.00021484,2]
[379933314,1755442277837,-273.452734,0.00021484,2]
[379933315,1755442277847,-9444.22848128,0.000215,2]
[379933316,1755442277857,-151.0,0.000215,2]
[379933317,1755442277866,-466.476595,0.000215,2]
[379933318,1755442277875,-466.476595,0.000215,2]
[379933319,1755442277885,-151.0,0.000215,2]
[379933320,1755442277894,-151.0,0.000215,2]
[379933321,1755442277904,-151.0,0.000215,2]
[379933322,1755442277914,-19187.29552238,0.00021504,2]
[379933323,1755442277924,-1000.59700305,0.00021507,2]
[379933324,1755442277934,-3000.0,0.00021512,2]
[379933325,1755442277943,-3000.0,0.00021512,2]
[379933326,1755442277953,-151.0,0.00021521,2]
[379933327,1755442277962,-502.775489,0.00021521,2]
[379933328,1755442277972,-151.0,0.00021521,2]
[379933329,1755442277982,-502.775489,0.00021521,2]
[379933330,1755442277991,-151.0,0.00021521,2]
[379933331,1755442278001,-301.733932,0.00021521,2]
[379933332,1755442278011,-206.0,0.0002153,2]
[379933333,1755442278022,-168.0,0.00021532,2]
[379933334,1755442278031,-658.0,0.00021542,2]
[379933335,1755442278040,-420.5,0.00021554,3]
[379933336,1755442278050,-300.010742,0.00021568,2]
[379933337,1755442278060,-151.0,0.00021568,2]
[379933338,1755442278069,-151.0,0.00021568,2]
[379933339,1755442278079,-1500.0,0.00021568,2]
[379933340,1755442278088,-1094.43579841,0.00021568,2]
[379933341,1755442278098,-1500.0,0.00021568,2]
[379933342,1755442278107,-1500.0,0.00021568,2]
[379933343,1755442278117,-991.62736273,0.00021568,2]
[379933344,1755442278127,-1025.9554681,0.00021568,2]
[379933345,1755442278136,-1500.0,0.00021568,2]
[379933346,1755442278146,-1500.0,0.00021568,2]
[379933347,1755442278157,-466.72268674,0.00021568,2]
[379933348,1755442278166,-1500.0,0.00021568,2]
[379933349,1755442278176,-1500.0,0.00021568,2]
[379933350,1755442278186,-1500.0,0.00021568,2]
[379933351,1755442278195,-1448.65699389,0.00021568,2]
[379933352,1755442278205,-1500.0,0.00021568,2]
[379933353,1755442278215,-1500.0,0.00021568,2]
[379933354,1755442278224,-1500.0,0.00021568,2]
[379933355,1755442278233,-803.91255009,0.00021568,2]
[379933356,1755442278243,-1500.0,0.00021568,2]
[379933357,1755442278252,-1000.0,0.00021568,2]
[379933358,1755442278262,-1500.0,0.00021568,2]
[379933359,1755442278272,-1500.0,0.00021568,2]
[379933360,1755442278282,-1585.16894155,0.00021568,2]
[379933361,1755442278291,-157.081155,0.000216,7]
[379933362,1755442278300,-168.504209,0.000216,7]
[379933363,1755442278310,-344.40837171,0.00021616,2]
[379933364,1755442278320,-501.60809982,0.00021616,2]
[379933365,1755442278330,-1501.62154399,0.00021616,2]
[379933366,1755442278340,-2000.0,0.00021616,2]
[379933367,1755442278350,-2000.0,0.00021616,2]
[379933368,1755442278360,-2000.0,0.00021616,2]
[379933369,1755442278371,-259.99989431,0.00021616,2]
[379933370,1755442278382,-228.46750799,0.00021616,2]
[379933371,1755442278403,-2000.0,0.00021616,2]
[379933372,1755442278420,-2000.0,0.00021616,2]
[379933373,1755442278430,-2000.0,0.00021616,2]
[379933374,1755442278441,-2000.0,0.00021616,2]
[379933375,1755442278452,-508.84165621,0.00021616,2]
[379933376,1755442278462,-1412.86776142,0.00021616,2]
[379933377,1755442278472,-196.138041,0.00021643,2]
[379933378,1755442278482,-151.0,0.00021643,2]
[379933379,1755442278492,-151.0,0.00021643,2]
[379933380,1755442278501,-410.539385,0.00021643,2]
[379933381,1755442278510,-872.0,0.00021644,2]
[379933382,1755442278520,-198.0,0.00021644,2]
[379933383,1755442278530,-151.0,0.00021644,2]
[379933384,1755442278539,-151.0,0.00021657,2]
[379933385,1755442278549,-527.36,0.00021657,2]
[379933386,1755442278558,-912.72,0.00021657,2]
[379933387,1755442278567,-480.0,0.00021657,2]
[379933388,1755442278576,-563.11,0.00021657,2]
[379933389,1755442278586,-480.0,0.00021657,2]
[379933390,1755442278595,-591.29,0.00021657,2]
[379933391,1755442278605,-480.0,0.00021657,2]
[379933392,1755442278617,-1163.69,0.00021657,2]
[379933393,1755442278626,-196.6238557,0.00021657,2]
[379933394,1755442278635,-480.0,0.00021657,2]
[379933395,1755442278644,-928.64,0.00021657,2]
[379933396,1755442278655,-908.19,0.00021657,2]
[379933397,1755442278666,-480.0,0.00021657,2]
[379933398,1755442278675,-480.0,0.00021657,2]
[379933399,1755442278684,-709.65,0.00021657,2]
[379933400,1755442278694,-1949.06,0.00021657,2]
[379933401,1755442278704,-480.0,0.00021657,2]
[379933402,1755442278714,-2225.78,0.00021657,2]
[379933403,1755442278723,-1000.32,0.00021657,2]
[379933404,1755442278733,-480.0,0.00021657,2]
[379933405,1755442278744,-1436.82,0.00021657,2]
[379933406,1755442278754,-6061.46,0.00021657,2]
[379933407,1755442278763,-1175.2,0.00021657,2]
[379933408,1755442278773,-763.93,0.00021657,2]
[379933409,1755442278782,-526.35,0.00021657,2]
[379933410,1755442278792,-480.0,0.00021657,2]
[379933411,1755442278801,-695.09,0.00021657,2]
[379933412,1755442278810,-715.83,0.00021657,2]
[379933413,1755442278820,-494.32,0.00021657,2]
[379933414,1755442278829,-480.0,0.00021657,2]
[379933415,1755442278839,-504.66,0.00021657,2]
[379933416,1755442278848,-658.0,0.00021662,2]
[379933417,1755442278858,-160.7855539,0.00021671,2]
[379933418,1755442278868,-580.6760442,0.00021671,2]
[379933419,1755442278877,-200.0,0.0002169,2]
[379933420,1755442278887,-3000.0,0.00021691,2]
[379933421,1755442278897,-970.7564,0.000217,2]
[379933423,1755442278907,-970.7564,0.000217,2]
[379933425,1755442278916,-273.692923,0.00021717,2]
[379933427,1755442278925,-273.692923,0.00021717,2]
[379933429,1755442278935,-600.0,0.00021721,2]
[379933431,1755442278945,-500.0,0.00021721,2]
[379933433,1755442278954,-500.0,0.00021721,2]
[379933435,1755442278964,-593.24961039,0.00021721,2]
[379933437,1755442278974,-500.0,0.00021721,2]
[379933438,1755442278983,-500.0,0.00021721,2]
[379933439,1755442278993,-522.748646,0.00021721,2]
[379933440,1755442279002,-206.0,0.00021721,2]
[379933441,1755442279012,-213.0,0.00021721,2]
[379933442,1755442279024,-151.0,0.00021721,2]
[379933443,1755442279034,-420.5,0.00021721,3]
[379933444,1755442279043,-228.443223,0.00021734,2]
[379933445,1755442279053,-228.443223,0.00021734,2]
[379933446,1755442279062,-638.72,0.00021739,2]
[379933447,1755442279072,-151.0,0.00021739,2]
[379933448,1755442279081,-951.6485,0.00021747,2]
[379933449,1755442279091,-951.6485,0.00021747,2]
[379933450,1755442279101,-480.0,0.00021752,2]
[379933451,1755442279111,-1819.3,0.00021752,2]
[379933452,1755442279120,-3256.49,0.00021753,2]
[379933453,1755442279130,-480.0,0.00021754,2]
[379933454,1755442279139,-698.95,0.00021754,2]
[379933456,1755442279149,-480.0,0.00021754,2]
[379933457,1755442279160,-687.45,0.00021754,2]
[379933458,1755442279170,-480.0,0.00021754,2]
[379933459,1755442279179,-549.85,0.00021754,2]
[379933460,1755442279189,-480.0,0.00021754,2]
[379933461,1755442279200,-971.72,0.00021754,2]
[379933462,1755442279210,-480.0,0.00021754,2]
[379933463,1755442279219,-573.88,0.00021754,2]
[379933464,1755442279229,-480.0,0.00021754,2]
[379933465,1755442279239,-719.18,0.00021754,2]
[379933466,1755442279248,-480.0,0.00021754,2]
[379933467,1755442279257,-584.35,0.00021754,2]